{"text_format":"2","workbook":"xlsx","n_sheets":5,"sheets":["Einführung","Eingabe","Auswertung","Berechnung","Basisdaten"],"not_rendered":{"charts":2,"images":2,"macros":0,"external_links":0,"defined_names":3,"comments":0,"pivot_tables":0},"unopened":[],"bounds":{"document_bytes":16777216,"sheet_cells":100000,"run_cost":"one","rows_first":2000,"rows_last":500,"rows_between":2000,"halvings":0,"cell_chars":16384,"cell_head_chars":4096},"cells_cut":0,"cells_raw":0,"read":"whole","date_system":"1900"}

{"sheet":"Einführung","index":0,"n_rows":22,"n_cols":2,"rows_kept":22,"cut":false,"hidden":false,"merged":[]}
[]
["Nachhaltigkeitsanalyse\nProduktion",{"$error":"#VALUE!"}]
[]
[]
["Nachhaltigkeit und Resilienz\nNachhaltigkeit bzw. eine nachhaltige Zukunft sind wichtige Themem, welche gesellschaftliche Relevanz erlangt haben und für viele Unternehmen auch aufgrund von neuen Gesetzen, Richtlinien und Normen zum Tagesgeschäft geworden sind. Diese Nachhaltigkeitsanalyse trägt dazu bei, die Nachhaltigkeit Ihres Unternehmens grob zu bewerten und ggf. Potenzialfelder aufzuzeigen. \nResilienz ist ein weiterer wichtiger Faktor für Unternehmen, um sich auf Gefahren und Krisen vorzubereiten und diese ggf. zu bewältigen. Eine resiliente Organisation ist in der Lage, schnell und effektiv auf unvorhergesehene Ereignisse zu reagieren und sich schnell wieder zu erholen."]
[]
["Die Analyse\nDiese Analyse deckt verschiedene Aspekte der Nachhaltigkeit ab. Dazu zählen die Cluster Ökologie, Soziales und Unternehmensführung. Aber auch ein ökonomischer bzw. wirtschaftlicher Teil ist Bestandteil der Analyse und führt bei gleichzeitiger Betrachtung mit den anderen Clustern zu einer ganzheitlichen Sicht auf Ihr Unternehmen."]
[]
["Eingabe\nUnter dem Reiter Eingaben können Sie Ihre Eingaben tätigen. Die Analyse ist einfach gehalten und zeigt mögliche Aktivitäten in den vier Clustern Ökologie, Soziales, Unternehmensführung und Ökonomie in jeweils 4 Kategorien auf, die ein bzw. Ihr Unternehmen temporär oder dauerhaft durchführen kann. \n--> Bitte kennzeichnen Sie mit einem X die Aktivitäten, die Ihr Unternehmen heute schon durchführt."]
[]
["Zur Eingabe"]
[]
["Bewertung der Eingaben\nViele Aktivitäten wirken sich gleichzeitig auf verschiedene Cluster aus, die in der Bewertungsmatrix hinterlegt wurden. Da die Analyse allgemein gehalten ist, um in verschiedenen Branchen von klein- und mittelständischen Unternehmen anwendbar zu sein, ist die Meßlatte zur Erreichung eines guten Ergebnisses bei ca. 50% angelegt. Es handelt sich um eine qualitative Analyse, die im Wesentlichen darauf abziehlt, den Fokus auf die verschiedenen Aktivitäten zu legen und eine grobe Bestimmung für Ihr Unternehmen durchzuführen. \n\nDie Analyse ist nicht zur quantitativen Nachhaltigkeitsbewertung oder als Basis für eine qualifizierte Nachhaltigkeitsberichtserstattung geeignet!"]
[]
["Auswertung\nDie Reiter Auswertung zeigt Ihnen die qualitativen Auswertungen (tabellarisch und graphisch) mit einem Gesamtergebnis und Teilergebnissen für die 4 Cluster sowie die 16 Kategorien."]
[]
["Zur Auswertung"]
[]
["Fragen und Feedback\nBei Rückfragen nehmen Sie bitte per Mail Kontakt mit uns auf. Gerne erhalten wir Ihr Feedback mit Ihren Erfahrungen und zur Optimierung der vorliegenden Analyse."]
[]
["Was nun?\nNachhaltigkeit und Resilienz sind eng miteinander verbunden. Nachhaltige Geschäftsprozesse tragen dazu bei, die  Effizienz des Unternehmens langfristig und ganzheitlich zu verbessern, ohne die Wettbewerbsfähigkeit des Unternehmens zu beeinträchtigen. Um die Nachhaltigkeit von Unternehmen zu verbessern, ist es wichtig, dass Unternehmen ihre Geschäftsprozesse optimieren und ihre Ressourcen effizient nutzen."]
["Gerne unterstützen wir Sie im Rahmen der von der EU geförderten Initiative EDIH.SH. \nBei Bedarf sprechen Sie uns bitte an – wir informieren Sie gern über die verschiedenen Unterstützungsmöglichkeiten, die Ihnen im Rahmen dieses Projekts zur Verfügung stehen."]

{"sheet":"Eingabe","index":1,"n_rows":161,"n_cols":20,"rows_kept":161,"cut":false,"hidden":false,"merged":[[0,1,0,13],[2,0,2,16],[145,2,155,2],[107,7,115,7],[145,7,155,7],[131,7,144,7],[116,14,130,14],[131,14,144,14],[107,14,115,14],[91,14,93,14],[94,14,100,14],[101,14,106,14],[116,2,130,2],[131,2,144,2],[101,2,106,2],[94,2,100,2],[91,2,93,2],[91,12,93,12],[94,12,100,12],[101,12,106,12],[145,1,155,1],[107,1,115,1],[131,1,144,1],[116,1,130,1],[116,12,130,12],[51,0,85,0],[86,7,90,7],[91,7,93,7],[94,7,100,7],[101,7,106,7],[116,7,130,7],[107,0,155,0],[86,0,106,0],[86,1,90,1],[131,12,144,12],[145,12,155,12],[51,1,59,1],[60,1,66,1],[67,1,75,1],[76,1,85,1],[91,1,93,1],[94,1,100,1],[101,1,106,1],[30,12,37,12],[51,14,59,14],[60,14,66,14],[67,14,75,14],[76,14,85,14],[86,14,90,14],[107,2,115,2],[67,2,75,2],[60,2,66,2],[51,2,59,2],[86,2,90,2],[51,12,59,12],[60,12,66,12],[67,12,75,12],[51,7,59,7],[60,7,66,7],[67,7,75,7],[76,7,85,7],[76,2,85,2],[76,12,85,12],[86,12,90,12],[107,12,115,12],[38,12,50,12],[5,7,17,7],[5,17,17,17],[18,17,29,17],[30,17,37,17],[38,17,50,17],[38,1,50,1],[5,0,50,0],[38,14,50,14],[38,2,50,2],[30,7,37,7],[38,7,50,7],[18,1,29,1],[18,2,29,2],[5,2,17,2],[30,1,37,1],[30,2,37,2],[30,14,37,14],[18,7,29,7],[18,14,29,14],[5,14,17,14],[5,1,17,1],[5,12,17,12],[18,12,29,12],[156,0,161,1],[160,8,160,11],[5,19,50,19],[51,19,85,19],[86,19,106,19],[107,19,155,19],[159,8,159,11],[5,18,50,18],[51,18,85,18],[86,18,106,18],[107,18,155,18],[131,17,144,17],[145,17,155,17],[91,17,93,17],[94,17,100,17],[101,17,106,17],[107,17,115,17],[116,17,130,17],[51,17,59,17],[60,17,66,17],[67,17,75,17],[76,17,85,17],[86,17,90,17],[145,14,155,14]]}
[]
[]
["Eingabe"]
[]
["Cluster","Kategorie","Text","Ökologie","Soziales","Unternehmens-führung","Ökonomie","Summe","Punkte Ökologie","Punkte Soziales","Punkte Unternehmens-führung","Punkte Ökonomie","Punkte Kategorie","Maßnahmen","Anzahl der Maßnahmen","X --> 1","Bitte mit X markieren","Ergebnis %","Ergebnis Cluster %","Ergebnis Cluster %"]
["Ökologie","1. Rohstoffe",null,1,1,null,1,3,{"$f":"D6*$P6","v":0},{"$f":"E6*$P6","v":0},{"$f":"F6*$P6","v":0},{"$f":"G6*$P6","v":0},{"$f":"SUM(P6:P18)","v":0},"Produktdesign im Hinblick auf Verbrauch von Rohstoffen",{"$f":"ROWS(N6:N18)","v":13},{"$f":"IF(Q6<>\"\",1,0)","v":0},null,{"$f":"M6/O6","v":0},{"$f":"SUM(P6:P51)/SUM(O6:O51)","v":0},{"$f":"I158","v":0}]
[null,null,null,1,1,null,1,null,{"$f":"D7*$P7","v":0},0,0,0,null,"Priorisierung von Lieferanten, die Umweltmanagementstandards einhalten",null,{"$f":"IF(Q7<>\"\",1,0)","v":0}]
[null,null,null,1,1,null,1,null,0,0,0,0,null,"Minimierung von Verpackung / umweltfreundliche Verpackung",null,0]
[null,null,null,1,1,null,1,null,0,0,0,0,null,"Verbrauchserfassung von Rohstoffen / Effizienz",null,0]
[null,null,null,1,1,null,1,null,0,0,0,0,null,"Nutzung recycelter Materialien in einem oder mehreren Bereichen des Unternehmens",null,0]
[null,null,null,1,1,null,1,null,0,0,0,0,null,"Reduzierung des Einsatzes von nicht erneuerbaren Ressourcen oder besonders schädlichen Stoffen",null,0]
[null,null,null,1,1,null,1,null,0,0,0,0,null,"Implementierung von Produktdeklarationen, um Transparenz über Rohstoffe zu schaffen",null,0]
[null,null,null,1,1,null,1,null,0,0,0,0,null,"Verwendung von Biomaterialien als Ersatz für konventionelle Materialien",null,0]
[null,null,null,1,1,null,1,null,0,0,0,0,null,"Einsatz von Rohstoffen aus lokalen Quellen, um den Transportaufwand zu reduzieren",null,0]
[null,null,null,1,1,null,1,null,0,0,0,0,null,"Leitfäden und Standards zum Rohstoffeinsatz, Zusammenarbeit mit NGOs und Verbänden zurnachhaltige Rohstoffbeschaffung",null,0]
[null,null,null,1,1,null,1,null,0,0,0,0,null,"Verwendung von biologisch abbaubaren Materialien",null,0]
[null,null,null,1,1,null,1,null,0,0,0,0,null,"Mitarbeiterschulungen zu Rohstoffen und Rohstoffeffizent",null,0]
[null,null,null,1,1,null,1,null,0,0,0,0,null,"Sonstiges",null,0]
[null,"2. Energie",null,1,1,null,1,3,0,0,0,0,{"$f":"SUM(P19:P30)","v":0},"Energiemanagement",{"$f":"ROWS(N19:N30)","v":12},0,null,{"$f":"M19/O19","v":0}]
[null,null,null,1,1,null,1,null,0,0,0,0,null,"Durchführung von Energieaudits zur Identifikation von Optimierungspotenzialen",null,0]
[null,null,null,1,1,null,1,null,0,0,0,0,null,"Integration von Energiespeichertechnologien",null,0]
[null,null,null,1,1,null,1,null,0,0,0,0,null,"Einsatz erneuerbarer Energien",null,0]
[null,null,null,1,1,null,1,null,0,0,0,0,null,"Nutzung von Energie aus Abfallprodukten (z.B. Biogas).",null,0]
[null,null,null,1,1,null,1,null,0,0,0,0,null,"Einsatz eigener Anlagen zur Erzeugung von erneuerbaren Energie",null,0]
[null,null,null,1,1,null,1,null,0,0,0,0,null,"Produkdesign im Hinblick auf Verbrauch von Energie",null,0]
[null,null,null,1,1,null,1,null,0,0,0,0,null,"Nutzung von Abwärme",null,0]
[null,null,null,1,1,null,1,null,0,0,0,0,null,"Einführung von Energieeffizienzmaßnahmen in Produktionsanlagen oder Infrastruktur",null,0]
[null,null,null,1,1,null,1,null,0,0,0,0,null,"Nutzung von Förderprogrammen",null,0]
[null,null,null,1,1,null,1,null,0,0,0,0,null,"Mitarbeiterschulungen",null,0]
[null,null,null,1,1,null,1,null,0,0,0,0,null,"Sonstiges",null,0]
[null,"3. Emissionen, Treibhausgase bzw. CO2",null,1,1,null,1,3,0,0,0,0,{"$f":"SUM(P31:P38)","v":0},"Emissionsmanagement",{"$f":"ROWS(N31:N38)","v":8},0,null,{"$f":"M31/O31","v":0}]
[null,null,null,1,1,null,1,null,0,0,0,0,null,"Messung von Emissionen / Bewertung von Emissionen",null,0]
[null,null,null,1,1,null,1,null,0,0,0,0,null,"Dienstreisevorgaben",null,0]
[null,null,null,1,1,null,1,null,0,0,0,0,null,"Einsatz von intelligenten Systemen zur Emissionsreudzierung",null,0]
[null,null,null,1,1,null,1,null,0,0,0,0,null,"Emissionsoptimierte Logistikplanung, Einsatz effizienterer Transportmittel",null,0]
[null,null,null,1,1,null,1,null,0,0,0,0,null,"Kompensation von CO2-Emissionen durch die Unterstützung von Aufforstungsprojekten",null,0]
[null,null,null,1,1,null,1,null,0,0,0,0,null,"Mitarbeiterschulungen",null,0]
[null,null,null,1,1,null,1,null,0,0,0,0,null,"Sonstiges",null,0]
[null,"4. Abfälle ",null,1,1,null,1,3,0,0,0,0,{"$f":"SUM(P39:P51)","v":0},"Abfallmanagement",{"$f":"ROWS(N39:N51)","v":13},0,null,{"$f":"M39/O39","v":0}]
[null,null,null,1,1,null,1,null,0,0,0,0,null,"Implementierung einer Abfall-Strategie",null,0]
[null,null,null,1,1,null,1,null,0,0,0,0,null,"Messung von Abfallmengen/ Bewertung von Abfällen",null,0]
[null,null,null,1,1,null,1,null,0,0,0,0,null,"Zusammenarbeit mit Lieferanten zur Abfallreduktion in der Lieferkette",null,0]
[null,null,null,1,1,null,1,null,0,0,0,0,null,"Förderung von wiederverwendbaren Verpackungen / Einführung von Pfandsystemen für Verpackungen",null,0]
[null,null,null,1,1,null,1,null,0,0,0,0,null,"Überschreiten von Haltbarkeit bei Rohstoffen vermeiden",null,0]
[null,null,null,1,1,null,1,null,0,0,0,0,null,"Reduzierung von Verpackungsmaterialien in- und outbound",null,0]
[null,null,null,1,1,null,1,null,0,0,0,0,null,"Recycling eigener Abfälle",null,0]
[null,null,null,1,1,null,1,null,0,0,0,0,null,"Widerverwendung / Reparatur von Betriebsmitteln",null,0]
[null,null,null,1,1,null,1,null,0,0,0,0,null,"Einführung von Rücknahmesystemen für Produkte am Ende ihres Lebenszyklus",null,0]
[null,null,null,1,1,null,1,null,0,0,0,0,null,"Implementierung von Upcycling-Programmen für bestimmte Abfallprodukte",null,0]
[null,null,null,1,1,null,1,null,0,0,0,0,null,"Mitarbeiterschulungen",null,0]
[null,null,null,1,1,null,1,null,0,0,0,0,null,"Sonstiges",null,0]
["Soziales","5. Gleichheit","Gendering, Diversity, Bezahlung, Entwicklung, Chancen",null,1,null,1,2,0,0,0,0,{"$f":"SUM(P52:P60)","v":0},"Implementierung von flexiblen Arbeitszeiten und Remote-Arbeitsmöglichkeiten",{"$f":"ROWS(N52:N60)","v":9},0,null,{"$f":"M52/O52","v":0},{"$f":"SUM(P52:P86)/SUM(O52:O86)","v":0},{"$f":"J158","v":0}]
[{"$nulls":4},1,null,1,null,0,0,0,0,null,"Förderung von Mentorship-Programmen für Frauen und Minderheiten",null,0]
[{"$nulls":4},1,null,1,null,0,0,0,0,null,"Einführung von gleichen Elternzeitregelungen für Männer und Frauen",null,0]
[{"$nulls":4},1,null,1,null,0,0,0,0,null,"Sensibilisierungsschulungen zur Vermeidung von Vorurteilen und Diskriminierung",null,0]
[{"$nulls":4},1,null,1,null,0,0,0,0,null,"Regeln definieren, die zur Rekrutierung und Einstellung von Mitarbeitern aus verschiedenen Bevölkerungsgruppen führen",null,0]
[{"$nulls":4},1,null,1,null,0,0,0,0,null,"Transparenz bei der Bezahlung",null,0]
[{"$nulls":4},1,null,1,null,0,0,0,0,null,"Schulungen zu Vielfalt und Inklusion",null,0]
[{"$nulls":4},1,null,1,null,0,0,0,0,null,"Gleiche Aufstiegschancen für alle sicherstellen",null,0]
[{"$nulls":4},1,null,1,null,0,0,0,0,null,"Schaffung von sicheren Meldekanälen für Diskriminierungsvorfälle",null,0]
[null,"6. Gesundheit","Kunden, Mitarbeiter",null,1,null,1,2,0,0,0,0,{"$f":"SUM(P61:P67)","v":0},"Einführung von Ergonomie-Workshops und -Richtlinien für Arbeitsplätze",{"$f":"ROWS(N61:N67)","v":7},0,null,{"$f":"M61/O61","v":0}]
[{"$nulls":4},1,null,1,null,0,0,0,0,null,"Schaffung von Pausen- und Erholungsbereichen für Mitarbeiter",null,0]
[{"$nulls":4},1,null,1,null,0,0,0,0,null,"Förderung von Gesundheitsprüfungen und Impfungen",null,0]
[{"$nulls":4},1,null,1,null,0,0,0,0,null,"Implementierung von Stressmanagement-Programmen",null,0]
[{"$nulls":4},1,null,1,null,0,0,0,0,null,"Gesundheitsfördernde Produkte/Dienstleistungen",null,0]
[{"$nulls":4},1,null,1,null,0,0,0,0,null,"Produkttransparenz, Kundenberatung(-aufklärung, -> Hinweise auf mögliche Gesundheitsschäden",null,0]
[{"$nulls":4},1,null,1,null,0,0,0,0,null,"Bereitstellung von gesunden Mahlzeiten in der Unternehmenskantine",null,0]
[null,"7. Mitarbeiterförderung","Unternehmenskultur, Identifikation, aktive Motivation/Entwicklung, Stimmungsabfrage",null,1,1,1,3,0,0,0,0,{"$f":"SUM(P68:P76)","v":0},"Einführung von individuellen Entwicklungsplänen",{"$f":"ROWS(N68:N76)","v":9},0,null,{"$f":"M68/O68","v":0}]
[{"$nulls":4},1,1,1,null,0,0,0,0,null,"Ausreichende Bereitstellung von Finanzmitteln für interne/externe Fortbildungen",null,0]
[{"$nulls":4},1,1,1,null,0,{"$f":"E70*$P70","v":0},{"$f":"F70*$P70","v":0},{"$f":"G70*$P70","v":0},null,"Einrichtung von internen Schulungsakademien",null,0]
[{"$nulls":4},1,1,1,null,{"$f":"D71*$P71","v":0},0,0,0,null,"Förderung von Teamwork und Zusammenarbeit durch Team-Building-Aktivitäten",null,{"$f":"IF(Q71<>\"\",1,0)","v":0}]
[{"$nulls":4},1,1,1,null,0,0,0,0,null,"Mentoring-Programme",null,0]
[{"$nulls":4},1,1,1,null,0,0,0,0,null,"Förderung von Vielfalt und Inklusion",null,0]
[{"$nulls":4},1,1,1,null,0,0,0,0,null,"Beteiligung an Entscheidungsprozessen",null,0]
[{"$nulls":4},1,1,1,null,0,0,0,0,null,"Familienförderung ",null,0]
[{"$nulls":4},1,1,1,null,0,0,0,0,null,"Einführung von Leistungsbeurteilungen und Feedbackprozessen",null,0]
[null,"8. Gesellschaftliches Engagement","Sponsoring, Stipendien, Spenden, Stiftung, Kultur, Bildung,  …",1,1,null,1,3,0,0,0,0,{"$f":"SUM(P77:P86)","v":0},"Beteiligung an lokalen Umweltschutzprojekten",{"$f":"ROWS(N77:N86)","v":10},0,null,{"$f":"M77/O77","v":0}]
[null,null,null,1,1,null,1,null,0,0,0,0,null,"Unterstützung von Bildungsinitiativen in der Gemeinschaft",null,0]
[null,null,null,1,1,null,1,null,0,0,0,0,null,"Freistellung von Mitarbeitern für ehrenamtliche Tätigkeiten",null,0]
[null,null,null,1,1,null,1,null,0,0,0,0,null,"Förderung von Mitarbeiterengagement in sozialen Projekten",null,0]
[null,null,null,1,1,null,1,null,0,0,0,0,null,"Offene Kommunikation über Fortschritt, Ziele und Herausforderungen",null,0]
[null,null,null,1,1,null,1,null,0,0,0,0,null,"Freiwilligenarbeit/Ehrenamt fördern",null,0]
[null,null,null,1,1,null,1,null,0,0,0,0,null,"Krisenhilfe und -management bspw. nach Naturkatastrophen",null,0]
[null,null,null,1,1,null,1,null,0,0,0,0,null,"Kooperation mit Schulen/Universitäten > Azubis, Duale Studenten, Praktikanten sowie Girls Day/Boys Day anbieten ",null,0]
[null,null,null,1,1,null,1,null,0,0,0,0,null,"Teilnahme an globalen Initiativen",null,0]
[null,null,null,1,1,null,1,null,0,0,0,0,null,"Partnerschaften mit NGOs für langfristige soziale Initiativen",null,0]
["Unternehmens-\nführung","9. Verantwortung","Verantwortlichkeiten in der Leitungsebene, Alle operativen Bereiche, Nachhaltigkeot, Risiko, Strategie, …",1,1,1,1,4,0,0,0,0,{"$f":"SUM(P87:P91)","v":0},"Einführung von ethischen Richtlinien für Geschäftspraktiken",{"$f":"ROWS(N87:N91)","v":5},0,null,{"$f":"M87/O87","v":0},{"$f":"SUM(P87:P107)/SUM(O87:O107)","v":0},{"$f":"K158","v":0}]
[null,null,null,1,1,1,1,null,0,0,0,0,null,"Schaffung von Ethik-Schulungen für alle Mitarbeiter",null,0]
[null,null,null,1,1,1,1,null,0,0,0,0,null,"Einrichtung eines unabhängigen Ethikausschusses",null,0]
[null,null,null,1,1,1,1,null,0,0,0,0,null,"Implementierung von Whistleblower-Programmen",null,0]
[null,null,null,1,1,1,1,null,0,0,0,0,null,"Integration von ethischen Überlegungen in strategische Entscheidungen",null,0]
[null,"10. Prozesse","Prozesse (dokumentiert, bekannt, …), neue Prozesse für Nachhaltigkeitsaspekte, Turnusmäßige Kontrollen des Kurses",1,1,1,1,4,0,0,0,0,{"$f":"SUM(P92:P94)","v":0},"Dokumentation der Geschäftsprozesse",{"$f":"ROWS(N92:N94)","v":3},0,null,{"$f":"M92/O92","v":0}]
[null,null,null,1,1,1,1,null,0,0,0,0,null,"Analyse von Umweltauswirkungen innerhalb der Geschäftsprozesse, um Verbesserungspotentiale zu identifizieren",null,0]
[null,null,null,1,1,1,1,null,0,0,0,0,null,"Regelmäßige Überprüfung der Geschäftsprozesse",null,0]
[null,"11. Gesetze, Normen und Regeln ","Kontrollmechnismen zur Einhaltung, Rechtsvorschriften, Vermeidung von Korruption, ",1,1,1,1,4,0,0,0,0,{"$f":"SUM(P95:P101)","v":0},"Einführung eines umfassenden Compliance-Management-Systems",{"$f":"ROWS(N95:N101)","v":7},0,null,{"$f":"M95/O95","v":0}]
[null,null,null,1,1,1,1,null,0,0,0,0,null,"Engagement bei Branchenverbänden zur Mitgestaltung von Standards",null,0]
[null,null,null,1,1,1,1,null,0,0,0,0,null,"Implementierung von internen Überprüfungsprozessen für die Einhaltung von Vorschriften",null,0]
[null,null,null,1,1,1,1,null,0,0,0,0,null,"Festlegung ethischer Leitlinien",null,0]
[null,null,null,1,1,1,1,null,0,0,0,0,null,"Whistleblower-Programm einführen",null,0]
[null,null,null,1,1,1,1,null,0,0,0,0,null,"Regelmäßige externe Audits zur Überprüfung der Einhaltung von Gesetzen usw.",null,0]
[null,null,null,1,1,1,1,null,0,0,0,0,null,"Regelmäßige Schulungen zur Einhaltung gesetzlicher Vorschriften",null,0]
[null,"12. Unternehmensberichte","Kennen Sie die Reportingpflichten, die für ihr Unternehmen gelten? Heute, in Zukunft, … Radar",null,1,1,null,2,0,0,0,0,{"$f":"SUM(P102:P107)","v":0},"Erstellung von regelmäßigen Nachhaltigkeitsberichten für Stakeholder",{"$f":"ROWS(N102:N107)","v":6},0,null,{"$f":"M102/O102","v":0}]
[{"$nulls":4},1,1,null,null,0,0,0,0,null,"Implementierung von global anerkannten Berichtsstandards (z.B., GRI - Global Reporting Initiative)",null,0]
[{"$nulls":4},1,1,null,null,0,0,0,0,null,"Integration von Key Performance Indicators (KPIs) für soziale und ökologische Leistung in Berichte",null,0]
[{"$nulls":4},1,1,null,null,0,0,0,0,null,"Veröffentlichung von Umwelt-, Sozial- und Governance-Berichten mindestens einmal jährlich",null,0]
[{"$nulls":4},1,1,null,null,0,0,0,0,null,"Einbeziehung von Feedback von Interessengruppen in die Berichterstattung",null,0]
[{"$nulls":4},1,1,null,null,0,0,0,0,null,"Nutzung von digitalen Plattformen zur transparenten Kommunikation von Unternehmensleistung",null,0]
["Ökonomie","13. Strategie","Resilienz, Zukunftsfähigkeit",1,1,1,1,4,0,0,0,0,{"$f":"SUM(P108:P116)","v":0},"Leitbild",{"$f":"ROWS(N108:N116)","v":9},0,null,{"$f":"M108/O108","v":0},{"$f":"SUM(P108:P156)/SUM(O108:O156)","v":0},{"$f":"L158","v":0}]
[null,null,null,1,1,1,1,null,0,0,0,0,null,"Entwicklung von klaren Strategien Nachhaltigkeitsstrategie mit messbaren Zielen",null,0]
[null,null,null,1,1,1,1,null,0,0,0,0,null,"Produktstrategie und -planung",null,0]
[null,null,null,1,1,1,1,null,0,0,0,0,null,"Identifikation von Risiken und Entwicklung von Risikomanagementplänen",null,0]
[null,null,null,1,1,1,1,null,0,0,0,0,null,"Aufbau von Partnerschaften mit Organisationen, die ähnliche Werte teilen",null,0]
[null,null,null,1,1,1,1,null,0,0,0,0,null,"Einführung von Anreizsystemen für nachhaltiges Verhalten der Mitarbeiter",null,0]
[null,null,null,1,1,1,1,null,0,0,0,0,null,"Teilnahme an nachhaltigen Initiativen und Zertifizierungsprogrammen",null,0]
[null,null,null,1,1,1,1,null,0,0,0,0,null,"Einbindung von Stakeholder-Feedback in die strategische Planung",null,0]
[null,null,null,1,1,1,1,null,0,0,0,0,null,"Förderung von Forschung und Entwicklung im Bereich nachhaltiger Technologien",null,0]
[null,"14. Produkte","Innovation, Nachhaltige Alternativen als Geschäftsmodell",1,1,null,1,3,0,0,0,0,{"$f":"SUM(P117:P131)","v":0},"Ideenmanagement",{"$f":"ROWS(N117:N131)","v":15},0,null,{"$f":"M117/O117","v":0}]
[null,null,null,1,1,null,1,null,0,0,0,0,null,"Innovationsmanagement",null,0]
[null,null,null,1,1,null,1,null,0,0,0,0,null,"Neue nachhaltige Produkte als alternatives Geschäftsmodell",null,0]
[null,null,null,1,1,null,1,null,0,0,0,0,null,"Entwicklung von Produkten mit längerer Lebensdauer",null,0]
[null,null,null,1,1,null,1,null,0,0,0,0,null,"Entwicklung von Produkten mit weniger Einzelteilen zur Vereinfachung der Entsorgung",null,0]
[null,null,null,1,1,null,1,null,0,0,0,0,null,"Reparaturfreundlichkeit",null,0]
[null,null,null,1,1,null,1,null,0,0,0,0,null,"Rücknamefähigkeit von Produkten",null,0]
[null,null,null,1,1,null,1,null,0,0,0,0,null,"Förderung von Reparaturdienstleistungen für Produkte",null,0]
[null,null,null,1,1,null,1,null,0,0,0,0,null,"Dienstleistung",null,0]
[null,null,null,1,1,null,1,null,0,0,0,0,null,"Integration von Umweltverträglichkeitsprüfungen in den Produktentwicklungsprozess",null,0]
[null,null,null,1,1,null,1,null,0,0,0,0,null,"Entwicklung von Produkten mit geringem Energieverbrauch",null,0]
[null,null,null,1,1,null,1,null,0,0,0,0,null,"Einführung oder Nutzung von Labels zur Kennzeichnung umweltfreundlicher Produkte",null,0]
[null,null,null,1,1,null,1,null,0,0,0,0,null,"Erstellung von Leitlinien für nachhaltige Produktverpackungen",null,0]
[null,null,null,1,1,null,1,null,0,0,0,0,null,"Implementierung von Rücknahmeprogrammen für veraltete Produkte",null,0]
[null,null,null,1,1,null,1,null,0,0,0,0,null,"Investition in Forschung und Entwicklung für umweltfreundliche Produktinnovationen",null,0]
[null,"15. Geschäftsbeziehungen","Handelsbeziehungen, Partnerschaften, Stakeholder (Lieferketten, …) - ökonomische Nachhaltigkeit bei der Auswahl von Geschäftspartnern und Zulieferern ",1,1,1,1,4,0,0,0,0,{"$f":"SUM(P132:P146)","v":0},"Kommunikation mit Stakeholdern",{"$f":"ROWS(N132:N145)","v":14},0,null,{"$f":"M132/O132","v":0}]
[null,null,null,1,1,1,1,null,0,0,0,0,null,"Bedarfsanalyse Stakeholder",null,0]
[null,null,null,1,1,1,1,null,0,{"$f":"E134*$P134","v":0},{"$f":"F134*$P134","v":0},{"$f":"G134*$P134","v":0},null,"Partnerschaften",null,0]
[null,null,null,1,1,1,1,null,{"$f":"D135*$P135","v":0},0,0,0,null,"Vorwettbewerbliche gemeinschaftliche Entwicklungen",null,{"$f":"IF(Q135<>\"\",1,0)","v":0}]
[null,null,null,1,1,1,1,null,0,0,0,0,null,"Umgang mit Lieferanten und Transparenz",null,0]
[null,null,null,1,1,1,1,null,0,0,0,0,null,"Integration von Nachhaltigkeitsbedingungen Lieferantenverträge",null,0]
[null,null,null,1,1,1,1,null,0,0,0,0,null,"Überprüfung der Nachhaltigkeitspraktiken von Lieferanten durch Audits",null,0]
[null,null,null,1,1,1,1,null,0,0,0,0,null,"Förderung von Lieferanten mit nachhaltigen Zertifizierungen",null,0]
[null,null,null,1,1,1,1,null,0,0,0,0,null,"Schulung von Lieferanten in Bezug auf nachhaltige Praktiken",null,0]
[null,null,null,1,1,1,1,null,0,0,0,0,null,"Förderung von lokalen Lieferanten, um Transportwege zu verkürzen",null,0]
[null,null,null,1,1,1,1,null,0,0,0,0,null,"Teilnahme an Brancheninitiativen für nachhaltige Lieferketten",null,0]
[null,null,null,1,1,1,1,null,0,0,0,0,null,"Integration von sozialen und ökologischen Kriterien in die Lieferantenauswahl",null,0]
[null,null,null,1,1,1,1,null,0,0,0,0,null,"Aufbau von langfristigen Partnerschaften mit Kunden/Lieferanten",null,0]
[null,null,null,1,1,1,1,null,0,0,0,0,null,"Entwicklung von Anreizsystemen für Lieferanten, die nachhaltige Praktiken umsetzen",null,0]
[null,"16. Qualität",null,1,null,1,1,3,0,0,0,0,{"$f":"SUM(P146:P156)","v":0},"Implementierung von Qualitätsmanagementsystemen nach ISO-Standards",{"$f":"ROWS(N146:N156)","v":11},0,null,{"$f":"M146/O146","v":0}]
[null,null,null,1,null,1,1,null,0,0,0,0,null,"Entwicklung von Frühwarnsystemen zur Identifikation von Qualitätsproblemen / Auswertung von Feldbeanstandungen und Behebung von Feldproblemen",null,0]
[null,null,null,1,null,1,1,null,0,0,0,0,null,"Aufbau eines Produktrückrufprozesses im Falle von gravierenden Feldbeanstandungen",null,0]
[null,null,null,1,null,1,1,null,0,0,0,0,null,"Einführung von Qualitätskontrollen in allen Phasen der Produktion",null,0]
[null,null,null,1,null,1,1,null,0,0,0,0,null,"Regelmäßige Überprüfung und Aktualisierung von Qualitätsstandards",null,0]
[null,null,null,1,null,1,1,null,0,0,0,0,null,"Einbindung von Kundenfeedback in die Produktentwicklung und -verbesserung",null,0]
[null,null,null,1,null,1,1,null,0,0,0,0,null,"Verwendung von Technologien zur kontinuierlichen Qualitätsüberwachung",null,0]
[null,null,null,1,null,1,1,null,0,0,0,0,null,"Implementierung von Qualitätsprüfungen bei Lieferanten",null,0]
[null,null,null,1,null,1,1,null,0,0,0,0,null,"Förderung einer Qualitätskultur innerhalb des Unternehmens",null,0]
[null,null,null,1,null,1,1,null,0,0,0,0,null,"Entwicklung von Maßnahmenplänen zur kontinuierlichen Qualitätsverbesserung",null,0]
[null,null,null,1,null,1,1,null,0,0,0,0,null,"Schulung von Mitarbeitern in Bezug auf Qualitätsstandards und -praktiken",null,0]
[{"$error":"#VALUE!"},null,null,{"$f":"SUM(D6:D156)","v":120},{"$f":"SUM(E6:E156)","v":140},{"$f":"SUM(F6:F156)","v":64},{"$f":"SUM(G6:G156)","v":145},null,{"$f":"SUM(I6:I156)","v":0},{"$f":"SUM(J6:J156)","v":0},{"$f":"SUM(K6:K156)","v":0},{"$f":"SUM(L6:L156)","v":0}]
[{"$nulls":8},{"$f":"I157/D157","v":0},{"$f":"J157/E157","v":0},{"$f":"K157/F157","v":0},{"$f":"L157/G157","v":0}]
[]
[{"$nulls":8},{"$f":"SUM(I157:L157)","v":0}]
[{"$nulls":8},{"$f":"I160/SUM(D157:G157)","v":0}]

{"sheet":"Auswertung","index":2,"n_rows":14,"n_cols":17,"rows_kept":14,"cut":false,"hidden":false,"merged":[[1,7,1,10],[10,1,10,4],[10,5,10,8],[10,9,10,12],[10,13,10,16],[4,1,4,16],[6,1,6,16],[7,1,7,16],[9,1,9,4],[9,5,9,8],[9,9,9,12],[9,13,9,16]]}
[]
[{"$nulls":7},"Nachhaltigkeitsanalyse Produktion"]
[]
[]
[null,"Ergebnisse"]
[]
[null,"Gesamt"]
[null,{"$f":"Berechnung!E2","v":0}]
[]
[null,{"$f":"Berechnung!G2","v":"Ökologie"},null,null,null,{"$f":"Berechnung!G3","v":"Soziales"},null,null,null,{"$f":"Berechnung!G4","v":"Unternehmensführung"},null,null,null,{"$f":"Berechnung!G5","v":"Ökonomie"}]
[null,{"$f":"Berechnung!D2","v":0},null,null,null,{"$f":"Berechnung!D6","v":0},null,null,null,{"$f":"Berechnung!D10","v":0},null,null,null,{"$f":"Berechnung!D14","v":0}]
[]
[null,"Rohstoffe","Energie","Emissionen","Abfälle ","Gleichheit","Gesundheit","Mitarbeiter-förderung","Gesellschaftliches Engagement","Verantwortung","Prozesse","Gesetze, Normen und Regeln ","Unternehmens-berichte","Strategie","Produkte","Geschäfts-beziehungen","Qualität"]
[null,{"$f":"Berechnung!C2","v":0},{"$f":"Berechnung!C3","v":0},{"$f":"Berechnung!C4","v":0},{"$f":"Berechnung!C5","v":0},{"$f":"Berechnung!C6","v":0},{"$f":"Berechnung!C7","v":0},{"$f":"Berechnung!C8","v":0},{"$f":"Berechnung!C9","v":0},{"$f":"Berechnung!C10","v":0},{"$f":"Berechnung!C11","v":0},{"$f":"Berechnung!C12","v":0},{"$f":"Berechnung!C13","v":0},{"$f":"Berechnung!C14","v":0},{"$f":"Berechnung!C15","v":0},{"$f":"Berechnung!C16","v":0},{"$f":"Berechnung!C17","v":0}]

{"sheet":"Berechnung","index":3,"n_rows":17,"n_cols":8,"rows_kept":17,"cut":false,"hidden":true,"merged":[[1,4,16,4],[1,0,4,0],[5,0,8,0],[9,0,12,0],[13,0,16,0],[1,3,4,3],[5,3,8,3],[9,3,12,3],[13,3,16,3]]}
["Cluster","Kategorie","Ergebnis Kategorie","Ergebnis Cluster","Ergebnis Gesamt",null,"Gesamt",{"$f":"E2","v":0}]
["Ökologie (Ressourcenmanagement und Kreislaufw.)","1. Rohstoffe",{"$f":"Eingabe!R6","v":0},{"$f":"Eingabe!T6","v":0},{"$f":"Eingabe!I161","v":0},null,"Ökologie",{"$f":"D2","v":0}]
[null,"2. Energie",{"$f":"Eingabe!R19","v":0},null,null,null,{"$f":"A6","v":"Soziales"},{"$f":"D6","v":0}]
[null,"3. Emissionen, Treibhausgase bzw. CO2",{"$f":"Eingabe!R31","v":0},null,null,null,{"$f":"A10","v":"Unternehmensführung"},{"$f":"D10","v":0}]
[null,"4. Abfälle ",{"$f":"Eingabe!R39","v":0},null,null,null,{"$f":"A14","v":"Ökonomie"},{"$f":"D14","v":0}]
["Soziales","5. Gleichheit",{"$f":"Eingabe!R52","v":0},{"$f":"Eingabe!T52","v":0}]
[null,"6. Gesundheit",{"$f":"Eingabe!R61","v":0}]
[null,"7. Mitarbeiterförderung",{"$f":"Eingabe!R68","v":0}]
[null,"8. Gesellschaftliches Engagement",{"$f":"Eingabe!R77","v":0}]
["Unternehmensführung","9. Verantwortung",{"$f":"Eingabe!R87","v":0},{"$f":"Eingabe!T87","v":0}]
[null,"10. Prozesse",{"$f":"Eingabe!R92","v":0}]
[null,"11. Gesetze, Normen und Regeln ",{"$f":"Eingabe!R95","v":0}]
[null,"12. Unternehmensberichte",{"$f":"Eingabe!R102","v":0}]
["Ökonomie","13. Strategie",{"$f":"Eingabe!R108","v":0},{"$f":"Eingabe!T108","v":0}]
[null,"14. Produkte",{"$f":"Eingabe!R117","v":0}]
[null,"15. Geschäftsbeziehungen",{"$f":"Eingabe!R132","v":0}]
[null,"16. Qualität",{"$f":"Eingabe!R146","v":0}]

{"sheet":"Basisdaten","index":4,"n_rows":2,"n_cols":1,"rows_kept":2,"cut":false,"hidden":true,"merged":[]}
[]
["X"]